[Event "Dalheimers Hus Rapid Open"]
[Site "Dalheimers Hus, Slottsskogsgatan 12, Gothenburg, Sweden"]
[Date "2024.04.14"]
[Round "1.6"]
[White "Storme, Isak"]
[Black "Knutsen, Knut Steffen"]
[Result "1-0"]
[TimeControl "15 minutes + 5 seconds per move from move one."]
[WhiteTitle "IM"]
[WhiteFideId "1728113"]
[BlackFideId "1738500"]
[WhiteElo "2352"]
[BlackElo "1798"]

1. d4 {[%clk 00:15:07]} {[%emt 00:00:02]} Nf6 {[%clk 00:15:00]} {[%emt
00:00:12]} 2. Nc3 {[%clk 00:15:02]} {[%emt 00:00:09]} g6 {[%clk 00:14:51]}
{[%emt 00:00:14]} 3. e4 {[%clk 00:15:04]} {[%emt 00:00:02]} d6 {[%clk
00:14:50]} {[%emt 00:00:06]} 4. h4 {[%clk 00:14:55]} {[%emt 00:00:14]} Bg7
{[%clk 00:14:35]} {[%emt 00:00:21]} 5. Be2 {[%clk 00:14:36]} {[%emt 00:00:22]}
Nbd7 {[%clk 00:14:25]} {[%emt 00:00:16]} 6. h5 {[%clk 00:14:37]} {[%emt
00:00:04]} Nxh5 {[%clk 00:12:00]} {[%emt 00:02:31]} 7. Bxh5 {[%clk 00:14:38]}
{[%emt 00:00:03]} gxh5 {[%clk 00:12:04]} {[%emt 00:00:02]} 8. Rxh5 {[%clk
00:14:29]} {[%emt 00:00:13]} Nf6 {[%clk 00:12:06]} {[%emt 00:00:03]} 9. Rg5
{[%clk 00:14:28]} {[%emt 00:00:06]} Rg8 {[%clk 00:12:08]} {[%emt 00:00:04]} 10.
Bf4 {[%emt 00:03:50]} Bg4 {[%clk 00:09:11]} {[%emt 00:00:10]} 11. Rxg4 {[%clk
00:13:28]} {[%emt 00:00:11]} Nxg4 {[%clk 00:09:14]} {[%emt 00:00:03]} 12. Qxg4
{[%clk 00:13:30]} {[%emt 00:00:02]} Qd7 {[%clk 00:09:15]} {[%emt 00:00:04]} 13.
Qxd7+ {[%clk 00:13:16]} {[%emt 00:00:19]} Kxd7 {[%clk 00:09:18]} {[%emt
00:00:02]} 14. O-O-O {[%clk 00:13:06]} {[%emt 00:00:15]} e6 {[%clk 00:08:02]}
{[%emt 00:01:22]} 15. Nf3 {[%clk 00:13:01]} {[%emt 00:00:09]} Bf6 {[%clk
00:07:53]} {[%emt 00:00:14]} 16. g3 {[%clk 00:13:03]} {[%emt 00:00:03]} Rae8
{[%clk 00:07:35]} {[%emt 00:00:24]} 17. e5 {[%clk 00:12:28]} {[%emt 00:00:39]}
Be7 {[%clk 00:07:38]} {[%emt 00:00:03]} 18. Rh1 {[%clk 00:12:24]} {[%emt
00:00:08]} Rh8 {[%clk 00:06:58]} {[%emt 00:00:46]} 19. Rh5 {[%clk 00:12:05]}
{[%emt 00:00:23]} a6 {[%clk 00:06:25]} {[%emt 00:00:39]} 20. Ne4 {[%clk
00:11:53]} {[%emt 00:00:17]} d5 {[%clk 00:04:44]} {[%emt 00:01:46]} 21. Nf6+
{[%clk 00:11:54]} {[%emt 00:00:04]} Bxf6 {[%clk 00:04:47]} {[%emt 00:00:02]} 22.
exf6 {[%clk 00:11:57]} {[%emt 00:00:02]} Reg8 {[%clk 00:04:45]} {[%emt
00:00:07]} 23. Ne5+ {[%clk 00:11:54]} {[%emt 00:00:07]} Ke8 {[%clk 00:04:45]}
{[%emt 00:00:06]} 24. Bh6 {[%clk 00:11:54]} {[%emt 00:00:04]} b6 {[%clk
00:04:30]} {[%emt 00:00:21]} 25. Kd2 {[%clk 00:11:57]} {[%emt 00:00:02]} Rg6
{[%clk 00:04:13]} {[%emt 00:00:22]} 26. Bg7 {[%clk 00:11:50]} {[%emt 00:00:11]}
Rxg7 {[%clk 00:03:46]} {[%emt 00:00:33]} 27. fxg7 {[%clk 00:11:52]} {[%emt
00:00:02]} Rg8 {[%clk 00:03:50]} {[%emt 00:00:01]} 28. Rxh7 {[%clk 00:11:55]}
{[%emt 00:00:03]} f6 {[%clk 00:03:53]} {[%emt 00:00:02]} 29. Rh8 {[%clk
00:11:57]} {[%emt 00:00:03]} Kf7 {[%clk 00:03:57]} {[%emt 00:00:06]} 1-0

[Event "Dalheimers Hus Rapid Open"]
[Site "Dalheimers Hus, Slottsskogsgatan 12, Gothenburg, Sweden"]
[Date "2024.04.14"]
[Round "1.7"]
[White "Thern, Alfred"]
[Black "Aaberg, Anton"]
[Result "0-1"]
[TimeControl "15 minutes + 5 seconds per move from move one."]
[BlackTitle "IM"]
[WhiteFideId "1775227"]
[BlackFideId "1701991"]
[WhiteElo "1795"]
[BlackElo "2346"]

1. e4 {[%clk 00:15:06]} {[%emt 00:00:03]} e6 {[%clk 00:15:04]} {[%emt
00:00:07]} 2. d4 {[%clk 00:15:05]} {[%emt 00:00:06]} d5 {[%clk 00:15:08]} 3.
Nc3 {[%clk 00:14:40]} {[%emt 00:00:30]} Bb4 {[%clk 00:15:10]} {[%emt 00:00:03]}
4. e5 {[%clk 00:14:18]} {[%emt 00:00:27]} Qd7 {[%clk 00:15:09]} {[%emt
00:00:05]} 5. a3 {[%clk 00:14:02]} {[%emt 00:00:22]} Bxc3+ {[%clk 00:15:12]}
{[%emt 00:00:02]} 6. bxc3 {[%clk 00:14:05]} {[%emt 00:00:02]} b6 {[%clk
00:15:15]} {[%emt 00:00:02]} 7. Qg4 {[%clk 00:13:32]} {[%emt 00:00:37]} f5
{[%clk 00:15:15]} {[%emt 00:00:05]} 8. Qg3 {[%clk 00:13:13]} {[%emt 00:00:25]}
Ba6 {[%clk 00:15:16]} {[%emt 00:00:04]} 9. Bxa6 {[%clk 00:12:49]} {[%emt
00:00:29]} Nxa6 {[%clk 00:15:20]} {[%emt 00:00:02]} 10. a4 {[%clk 00:12:16]}
{[%emt 00:00:38]} Nb8 {[%clk 00:15:19]} {[%emt 00:00:05]} 11. Ne2 {[%clk
00:11:08]} {[%emt 00:01:14]} Nc6 {[%clk 00:15:04]} {[%emt 00:00:20]} 12. O-O
{[%clk 00:10:29]} {[%emt 00:00:44]} Na5 {[%clk 00:14:02]} {[%emt 00:01:06]} 13.
Nf4 {[%clk 00:09:51]} {[%emt 00:00:43]} O-O-O {[%clk 00:13:20]} {[%emt
00:00:46]} 14. Ba3 {[%clk 00:08:24]} {[%emt 00:01:33]} g6 {[%clk 00:11:26]}
{[%emt 00:01:59]} 15. h4 {[%clk 00:07:51]} {[%emt 00:00:38]} Ne7 {[%clk
00:08:42]} {[%emt 00:02:49]} 16. Rfb1 {[%clk 00:06:21]} {[%emt 00:01:35]} Nc4
{[%clk 00:08:37]} {[%emt 00:00:10]} 17. Bb4 {[%clk 00:05:08]} {[%emt 00:01:17]}
a5 {[%clk 00:08:30]} {[%emt 00:00:12]} 18. Bxe7 {[%clk 00:04:15]} {[%emt
00:00:59]} Qxe7 {[%clk 00:08:34]} 19. Qg5 {[%clk 00:03:35]} {[%emt 00:00:44]}
Qxg5 {[%clk 00:06:17]} {[%emt 00:02:22]} 20. hxg5 {[%clk 00:03:37]} {[%emt
00:00:03]} Kd7 {[%clk 00:06:21]} 21. Nd3 {[%clk 00:03:11]} {[%emt 00:00:31]} h6
{[%clk 00:06:19]} {[%emt 00:00:08]} 22. gxh6 {[%clk 00:02:43]} {[%emt
00:00:33]} Rxh6 {[%clk 00:06:23]} {[%emt 00:00:01]} 23. f3 {[%clk 00:02:21]}
{[%emt 00:00:27]} g5 {[%clk 00:05:45]} {[%emt 00:00:43]} 24. Kf2 {[%clk
00:01:42]} {[%emt 00:00:44]} f4 {[%clk 00:05:31]} {[%emt 00:00:19]} 25. Rh1
{[%clk 00:01:34]} {[%emt 00:00:13]} Rdh8 {[%clk 00:05:34]} {[%emt 00:00:01]} 26.
Rxh6 {[%clk 00:01:34]} {[%emt 00:00:05]} Rxh6 {[%clk 00:05:38]} 27. Re1 {[%clk
00:01:13]} {[%emt 00:00:26]} Ne3 {[%clk 00:05:19]} {[%emt 00:00:24]} 28. Re2
{[%clk 00:01:10]} {[%emt 00:00:09]} Rh1 {[%clk 00:04:51]} {[%emt 00:00:33]} 29.
Re1 {[%clk 00:01:01]} {[%emt 00:00:14]} Nd1+ {[%clk 00:04:40]} {[%emt
00:00:16]} 30. Ke2 {[%clk 00:00:49]} {[%emt 00:00:16]} Nxc3+ {[%clk 00:04:44]}
{[%emt 00:00:02]} 31. Kd2 {[%clk 00:00:52]} {[%emt 00:00:02]} Rxe1 {[%clk
00:04:43]} {[%emt 00:00:05]} 32. Kxe1 {[%clk 00:00:54]} {[%emt 00:00:03]} Nxa4
{[%clk 00:04:47]} 33. Kd2 {[%clk 00:00:49]} {[%emt 00:00:11]} c5 {[%clk
00:04:51]} {[%emt 00:00:01]} 34. c3 {[%clk 00:00:38]} {[%emt 00:00:16]} Kc6
{[%clk 00:04:14]} {[%emt 00:00:40]} 35. Nf2 {[%clk 00:00:34]} {[%emt 00:00:10]}
cxd4 {[%clk 00:03:30]} {[%emt 00:00:49]} 36. cxd4 {[%clk 00:00:35]} {[%emt
00:00:04]} b5 {[%clk 00:02:59]} {[%emt 00:00:36]} 37. Kc1 {[%clk 00:00:21]}
{[%emt 00:00:20]} b4 {[%clk 00:03:02]} {[%emt 00:00:02]} 38. Kc2 {[%clk
00:00:19]} {[%emt 00:00:07]} Nb6 {[%clk 00:03:00]} {[%emt 00:00:07]} 39. Nh3
{[%clk 00:00:20]} {[%emt 00:00:04]} a4 {[%clk 00:03:04]} {[%emt 00:00:02]} 40.
Nxg5 {[%clk 00:00:18]} {[%emt 00:00:06]} b3+ {[%clk 00:03:06]} {[%emt
00:00:03]} 41. Kb2 {[%clk 00:00:17]} {[%emt 00:00:06]} Nc4+ {[%clk 00:03:10]}
{[%emt 00:00:01]} 42. Ka1 {[%clk 00:00:19]} {[%emt 00:00:04]} a3 {[%clk
00:03:12]} {[%emt 00:00:02]} 43. Nxe6 {[%clk 00:00:15]} {[%emt 00:00:09]} Nd2
{[%clk 00:03:13]} {[%emt 00:00:04]} 0-1

[Event "Dalheimers Hus Rapid Open"]
[Site "Dalheimers Hus, Slottsskogsgatan 12, Gothenburg, Sweden"]
[Date "2024.04.14"]
[Round "1.8"]
[White "Andreasson, Ingvar"]
[Black "Karlsson, Per"]
[Result "1-0"]
[TimeControl "15 minutes + 5 seconds per move from move one."]
[WhiteFideId "1700294"]
[BlackFideId "1732935"]
[WhiteElo "2323"]
[BlackElo "1792"]

1. Nf3 {[%clk 00:15:07]} {[%emt 00:00:02]} e6 {[%clk 00:14:55]} {[%emt
00:00:16]} 2. d4 {[%clk 00:15:06]} {[%emt 00:00:06]} d5 {[%clk 00:14:58]}
{[%emt 00:00:02]} 3. Bf4 {[%clk 00:15:09]} {[%emt 00:00:01]} Nf6 {[%clk
00:14:59]} {[%emt 00:00:04]} 4. e3 {[%clk 00:15:12]} {[%emt 00:00:02]} c5
{[%clk 00:14:55]} {[%emt 00:00:10]} 5. Nbd2 {[%clk 00:15:11]} {[%emt 00:00:04]}
Nc6 {[%clk 00:14:48]} {[%emt 00:00:12]} 6. c3 {[%clk 00:15:15]} {[%emt
00:00:01]} Bd6 {[%clk 00:14:51]} {[%emt 00:00:02]} 7. Bg3 {[%clk 00:15:17]}
{[%emt 00:00:03]} Bxg3 {[%clk 00:14:32]} {[%emt 00:00:24]} 8. hxg3 {[%clk
00:15:20]} {[%emt 00:00:02]} Qe7 {[%clk 00:14:22]} {[%emt 00:00:15]} 9. Bb5
{[%clk 00:15:04]} {[%emt 00:00:22]} Bd7 {[%clk 00:14:19]} {[%emt 00:00:08]} 10.
a4 {[%clk 00:13:41]} {[%emt 00:01:28]} O-O {[%clk 00:13:59]} {[%emt 00:00:25]}
11. Bxc6 {[%clk 00:13:12]} {[%emt 00:00:34]} bxc6 {[%clk 00:13:02]} {[%emt
00:01:02]} 12. Ne5 {[%clk 00:13:15]} {[%emt 00:00:01]} cxd4 {[%clk 00:13:00]}
{[%emt 00:00:07]} 13. exd4 {[%clk 00:13:19]} Rac8 {[%clk 00:12:46]} {[%emt
00:00:20]} 14. g4 {[%clk 00:13:10]} {[%emt 00:00:14]} c5 {[%clk 00:12:35]}
{[%emt 00:00:16]} 15. g5 {[%clk 00:13:05]} {[%emt 00:00:10]} Ne4 {[%clk
00:12:29]} {[%emt 00:00:11]} 16. Nxe4 {[%clk 00:12:30]} {[%emt 00:00:40]} g6
{[%clk 00:09:22]} {[%emt 00:03:12]} 17. Nf6+ {[%clk 00:12:31]} {[%emt
00:00:04]} Kg7 {[%clk 00:09:24]} {[%emt 00:00:03]} 18. Rxh7# {[%clk 00:12:26]}
{[%emt 00:00:04]} 1-0

[Event "Dalheimers Hus Rapid Open"]
[Site "Dalheimers Hus, Slottsskogsgatan 12, Gothenburg, Sweden"]
[Date "2024.04.14"]
[Round "1.9"]
[White "Wennerlund, Elias"]
[Black "Rydstrom, Tom"]
[Result "0-1"]
[TimeControl "15 minutes + 5 seconds per move from move one."]
[BlackTitle "FM"]
[WhiteFideId "1742353"]
[BlackFideId "1714830"]
[WhiteElo "1742"]
[BlackElo "2313"]

1. e4 {[%clk 00:15:07]} {[%emt 00:00:02]} b6 {[%clk 00:15:02]} {[%emt
00:00:09]} 2. d4 {[%clk 00:15:07]} {[%emt 00:00:05]} Bb7 {[%clk 00:15:06]} 3.
Nc3 {[%clk 00:14:56]} {[%emt 00:00:15]} e6 {[%clk 00:15:11]} 4. Bd3 {[%clk
00:14:53]} {[%emt 00:00:08]} Bb4 {[%clk 00:15:03]} {[%emt 00:00:13]} 5. Nge2
{[%emt 00:01:37]} d5 {[%clk 00:13:36]} 6. O-O {[%clk 00:14:27]} {[%emt
00:00:31]} dxe4 {[%clk 00:13:26]} {[%emt 00:00:14]} 7. Nxe4 {[%clk 00:14:13]}
{[%emt 00:00:20]} Nd7 {[%clk 00:13:22]} {[%emt 00:00:09]} 8. c3 {[%clk
00:14:14]} {[%emt 00:00:04]} Be7 {[%clk 00:13:25]} {[%emt 00:00:02]} 9. Be3
{[%clk 00:13:59]} {[%emt 00:00:19]} Ngf6 {[%clk 00:13:21]} {[%emt 00:00:09]} 10.
N2g3 {[%clk 00:13:50]} {[%emt 00:00:15]} h5 {[%clk 00:13:07]} {[%emt 00:00:20]}
11. h4 {[%clk 00:13:14]} {[%emt 00:00:41]} Nxe4 {[%clk 00:12:42]} {[%emt
00:00:29]} 12. Bxe4 {[%clk 00:13:09]} {[%emt 00:00:11]} Bxe4 {[%clk 00:12:45]}
{[%emt 00:00:02]} 13. Nxe4 {[%clk 00:13:13]} Bxh4 {[%clk 00:12:43]} {[%emt
00:00:06]} 14. Qf3 {[%clk 00:13:03]} {[%emt 00:00:15]} Be7 {[%clk 00:12:04]}
{[%emt 00:00:45]} 15. Qg3 {[%clk 00:12:49]} {[%emt 00:00:19]} g6 {[%clk
00:11:08]} {[%emt 00:01:01]} 16. Ng5 {[%clk 00:10:29]} {[%emt 00:02:25]} Nf6
{[%clk 00:05:59]} {[%emt 00:05:13]} 17. Rae1 {[%clk 00:09:02]} {[%emt
00:01:32]} h4 {[%clk 00:05:29]} {[%emt 00:00:36]} 18. Qf3 {[%clk 00:07:59]}
{[%emt 00:01:08]} Qd5 {[%clk 00:05:15]} {[%emt 00:00:18]} 19. Bf4 {[%clk
00:06:21]} {[%emt 00:01:44]} Qxf3 {[%clk 00:05:04]} {[%emt 00:00:17]} 20. Nxf3
{[%clk 00:06:23]} {[%emt 00:00:03]} c5 {[%clk 00:03:24]} {[%emt 00:01:45]} 21.
Be5 {[%clk 00:05:39]} {[%emt 00:00:48]} Rh5 {[%clk 00:03:24]} {[%emt 00:00:05]}
22. Rd1 {[%clk 00:04:47]} {[%emt 00:00:57]} cxd4 {[%clk 00:03:22]} {[%emt
00:00:07]} 23. Bxd4 {[%clk 00:04:25]} {[%emt 00:00:26]} Rd8 {[%clk 00:02:54]}
{[%emt 00:00:33]} 24. Ne5 {[%clk 00:04:00]} {[%emt 00:00:31]} Rc8 {[%clk
00:02:14]} {[%emt 00:00:45]} 25. Rd3 {[%clk 00:03:46]} {[%emt 00:00:19]} Nd5
{[%clk 00:02:16]} {[%emt 00:00:03]} 26. Rf3 {[%clk 00:03:27]} {[%emt 00:00:24]}
Rf5 {[%clk 00:01:57]} {[%emt 00:00:24]} 27. Rxf5 {[%clk 00:03:09]} {[%emt
00:00:23]} gxf5 {[%clk 00:02:01]} 28. Rd1 {[%clk 00:02:57]} {[%emt 00:00:17]}
Bf6 {[%clk 00:01:48]} {[%emt 00:00:18]} 29. Nf3 {[%clk 00:02:24]} {[%emt
00:00:38]} Be7 {[%clk 00:01:29]} {[%emt 00:00:24]} 30. Be5 {[%clk 00:02:04]}
{[%emt 00:00:25]} b5 {[%clk 00:01:30]} {[%emt 00:00:04]} 31. Rd4 {[%clk
00:01:55]} {[%emt 00:00:14]} f6 {[%clk 00:00:50]} {[%emt 00:00:45]} 32. Bh2
{[%clk 00:01:52]} {[%emt 00:00:08]} b4 {[%clk 00:00:50]} {[%emt 00:00:06]} 33.
c4 {[%clk 00:01:43]} {[%emt 00:00:14]} Nb6 {[%clk 00:00:53]} 34. Rxh4 {[%clk
00:01:46]} {[%emt 00:00:03]} Nxc4 {[%clk 00:00:47]} {[%emt 00:00:11]} 35. b3
{[%clk 00:01:35]} {[%emt 00:00:16]} Nd6 {[%clk 00:00:39]} {[%emt 00:00:13]} 36.
Rh8+ {[%clk 00:01:29]} {[%emt 00:00:11]} Kd7 {[%clk 00:00:41]} {[%emt
00:00:03]} 37. Rxc8 {[%clk 00:01:33]} {[%emt 00:00:01]} Nxc8 {[%clk 00:00:38]}
{[%emt 00:00:08]} 38. Bb8 {[%clk 00:01:35]} {[%emt 00:00:03]} Kc6 {[%clk
00:00:29]} {[%emt 00:00:14]} 39. Bf4 {[%clk 00:01:21]} {[%emt 00:00:19]} Kd5
{[%clk 00:00:31]} {[%emt 00:00:03]} 40. Be3 {[%clk 00:01:17]} {[%emt 00:00:08]}
Ke4 {[%clk 00:00:27]} {[%emt 00:00:09]} 41. Nd4 {[%clk 00:01:21]} Bc5 {[%clk
00:00:20]} {[%emt 00:00:11]} 42. Nxe6 {[%clk 00:01:01]} {[%emt 00:00:26]} Bxe3
{[%clk 00:00:25]} 43. fxe3 {[%clk 00:01:05]} Kxe3 {[%clk 00:00:22]} {[%emt
00:00:08]} 44. Nc5 {[%clk 00:00:52]} {[%emt 00:00:19]} Nb6 {[%clk 00:00:16]}
{[%emt 00:00:11]} 45. Kf1 {[%clk 00:00:49]} {[%emt 00:00:07]} Kd2 {[%clk
00:00:19]} {[%emt 00:00:02]} 46. Ne6 {[%clk 00:00:23]} {[%emt 00:00:31]} Kc3
{[%clk 00:00:19]} {[%emt 00:00:06]} 47. Nc7 {[%clk 00:00:15]} {[%emt 00:00:12]}
Kb2 {[%emt 00:00:10]} 48. Nb5 {[%clk 00:00:14]} a5 {[%clk 00:00:10]} {[%emt
00:00:15]} 49. Ke2 {[%clk 00:00:12]} {[%emt 00:00:07]} Kxa2 {[%clk 00:00:14]}
50. Nd4 {[%clk 00:00:16]} {[%emt 00:00:02]} Kb2 {[%clk 00:00:14]} {[%emt
00:00:05]} 51. Kd2 {[%clk 00:00:18]} {[%emt 00:00:04]} Nd7 {[%clk 00:00:11]}
{[%emt 00:00:08]} 0-1

[Event "Dalheimers Hus Rapid Open"]
[Site "Dalheimers Hus, Slottsskogsgatan 12, Gothenburg, Sweden"]
[Date "2024.04.14"]
[Round "1.10"]
[White "Hamark, Jesper"]
[Black "Bjureblad, Martin"]
[Result "1-0"]
[TimeControl "15 minutes + 5 seconds per move from move one."]
[WhiteFideId "1704338"]
[BlackFideId "1717928"]
[WhiteElo "2301"]
[BlackElo "1728"]

1. e4 {[%clk 00:15:07]} {[%emt 00:00:02]} c5 {[%clk 00:15:08]} {[%emt
00:00:03]} 2. Nc3 {[%clk 00:15:09]} {[%emt 00:00:03]} Nc6 {[%clk 00:15:10]}
{[%emt 00:00:02]} 3. Bb5 {[%clk 00:15:12]} {[%emt 00:00:02]} e6 {[%clk
00:15:12]} {[%emt 00:00:04]} 4. Nf3 {[%clk 00:15:16]} {[%emt 00:00:02]} d6
{[%clk 00:15:13]} {[%emt 00:00:03]} 5. Bxc6+ {[%clk 00:13:35]} {[%emt
00:01:47]} bxc6 {[%clk 00:15:15]} {[%emt 00:00:03]} 6. e5 {[%clk 00:13:39]}
{[%emt 00:00:01]} g6 {[%clk 00:14:45]} {[%emt 00:00:34]} 7. exd6 {[%clk
00:13:27]} {[%emt 00:00:17]} Qxd6 {[%clk 00:14:34]} {[%emt 00:00:16]} 8. O-O
{[%clk 00:13:30]} {[%emt 00:00:03]} Ba6 {[%clk 00:13:21]} {[%emt 00:01:17]} 9.
d3 {[%clk 00:12:43]} {[%emt 00:00:52]} Bg7 {[%clk 00:12:18]} {[%emt 00:01:09]}
10. Be3 {[%clk 00:12:33]} {[%emt 00:00:14]} Bxc3 {[%clk 00:12:02]} {[%emt
00:00:21]} 11. bxc3 {[%clk 00:12:36]} {[%emt 00:00:03]} Nf6 {[%clk 00:11:59]}
{[%emt 00:00:08]} 12. c4 {[%clk 00:12:20]} {[%emt 00:00:22]} Rd8 {[%clk
00:11:48]} {[%emt 00:00:15]} 13. Qd2 {[%clk 00:11:45]} {[%emt 00:00:39]} O-O
{[%clk 00:11:22]} {[%emt 00:00:32]} 14. Qa5 {[%clk 00:11:39]} {[%emt 00:00:11]}
Rfe8 {[%clk 00:08:56]} {[%emt 00:02:31]} 15. Bxc5 {[%clk 00:10:54]} {[%emt
00:00:50]} Qf4 {[%clk 00:08:03]} {[%emt 00:00:57]} 16. Qxa6 {[%clk 00:10:55]}
{[%emt 00:00:06]} g5 {[%clk 00:05:47]} {[%emt 00:02:20]} 17. Be3 {[%clk
00:10:41]} {[%emt 00:00:20]} Qf5 {[%clk 00:04:12]} {[%emt 00:01:39]} 18. Bxg5
{[%clk 00:10:34]} {[%emt 00:00:12]} 1-0

[Event "Dalheimers Hus Rapid Open"]
[Site "Dalheimers Hus, Slottsskogsgatan 12, Gothenburg, Sweden"]
[Date "2024.04.14"]
[Round "1.11"]
[White "Lapidus, John"]
[Black "Svensson, Bengt"]
[Result "0-1"]
[TimeControl "15 minutes + 5 seconds per move from move one."]
[BlackTitle "IM"]
[WhiteFideId "1763989"]
[BlackFideId "1700200"]
[WhiteElo "1710"]
[BlackElo "2281"]

1. d4 {[%emt 00:00:03]} d5 {[%clk 00:15:01]} {[%emt 00:00:07]} 2. Bg5 {[%clk
00:15:03]} {[%emt 00:00:07]} h6 {[%clk 00:14:52]} {[%emt 00:00:14]} 3. Bh4
{[%clk 00:15:04]} {[%emt 00:00:04]} c6 {[%clk 00:14:49]} {[%emt 00:00:08]} 4.
e3 {[%clk 00:15:02]} {[%emt 00:00:07]} Qb6 {[%clk 00:14:49]} {[%emt 00:00:06]}
5. b3 {[%clk 00:14:49]} {[%emt 00:00:17]} Bf5 {[%clk 00:14:48]} {[%emt
00:00:06]} 6. Bd3 {[%clk 00:14:48]} {[%emt 00:00:07]} Bxd3 {[%clk 00:14:42]}
{[%emt 00:00:10]} 7. Qxd3 {[%clk 00:14:44]} {[%emt 00:00:08]} Nd7 {[%clk
00:14:21]} {[%emt 00:00:27]} 8. Nf3 {[%clk 00:14:36]} {[%emt 00:00:13]} e6
{[%clk 00:14:23]} {[%emt 00:00:04]} 9. O-O {[%clk 00:14:28]} {[%emt 00:00:12]}
Be7 {[%clk 00:14:20]} {[%emt 00:00:09]} 10. c4 {[%clk 00:14:17]} {[%emt
00:00:15]} Bxh4 {[%clk 00:14:11]} {[%emt 00:00:14]} 11. Nxh4 {[%clk 00:14:20]}
{[%emt 00:00:02]} Ngf6 {[%clk 00:14:08]} {[%emt 00:00:08]} 12. Nc3 {[%clk
00:14:00]} {[%emt 00:00:24]} O-O {[%clk 00:13:59]} {[%emt 00:00:14]} 13. Kh1
{[%clk 00:13:43]} {[%emt 00:00:22]} dxc4 {[%clk 00:13:09]} {[%emt 00:00:55]} 14.
bxc4 {[%clk 00:13:41]} {[%emt 00:00:08]} Qa6 {[%clk 00:13:07]} {[%emt
00:00:07]} 15. a4 {[%clk 00:13:13]} {[%emt 00:00:32]} Nb6 {[%clk 00:12:50]}
{[%emt 00:00:22]} 16. Rfc1 {[%clk 00:12:25]} {[%emt 00:00:53]} Qxc4 {[%clk
00:12:34]} {[%emt 00:00:21]} 17. Qd1 {[%clk 00:11:51]} {[%emt 00:00:38]} Nbd5
{[%clk 00:11:41]} {[%emt 00:00:59]} 18. Ne4 Nxe4 {[%clk 00:10:33]} 19. Rxc4
{[%clk 00:08:51]} {[%emt 00:00:08]} Nxf2+ {[%clk 00:10:36]} {[%emt 00:00:03]}
20. Kg1 {[%clk 00:08:45]} {[%emt 00:00:11]} Nxd1 {[%clk 00:10:39]} {[%emt
00:00:02]} 21. Rxd1 {[%clk 00:08:47]} {[%emt 00:00:02]} Nxe3 {[%emt 00:00:22]}
0-1

[Event "Dalheimers Hus Rapid Open"]
[Site "Dalheimers Hus, Slottsskogsgatan 12, Gothenburg, Sweden"]
[Date "2024.04.14"]
[Round "2.1"]
[White "Seo, Jung Min"]
[Black "Sjoholm, Emil"]
[Result "1-0"]
[TimeControl "15 minutes + 5 seconds per move from move one."]
[WhiteTitle "IM"]
[WhiteFideId "1734687"]
[BlackFideId "1720449"]
[WhiteElo "2450"]
[BlackElo "2016"]

1. e4 {[%clk 00:15:10]} {[%emt 00:04:04]} e5 {[%clk 00:15:08]} {[%emt
00:00:03]} 2. Nf3 {[%clk 00:15:14]} Nc6 {[%clk 00:15:12]} {[%emt 00:00:01]} 3.
Bb5 {[%clk 00:15:18]} Nf6 {[%clk 00:15:16]} {[%emt 00:00:02]} 4. d3 {[%clk
00:15:22]} Bc5 {[%clk 00:15:19]} {[%emt 00:00:01]} 5. Bxc6 {[%clk 00:15:06]}
{[%emt 00:00:20]} dxc6 {[%clk 00:15:18]} {[%emt 00:00:07]} 6. O-O {[%clk
00:15:07]} {[%emt 00:00:04]} Bd6 {[%clk 00:13:42]} {[%emt 00:01:41]} 7. Nbd2
{[%clk 00:15:02]} {[%emt 00:00:09]} O-O {[%clk 00:13:42]} {[%emt 00:00:06]} 8.
Nc4 {[%clk 00:15:06]} {[%emt 00:00:02]} Qe7 {[%clk 00:13:37]} {[%emt 00:00:09]}
9. Kh1 {[%clk 00:14:02]} {[%emt 00:01:09]} b5 {[%clk 00:13:10]} {[%emt
00:00:32]} 10. Na5 {[%clk 00:13:48]} {[%emt 00:00:19]} c5 {[%clk 00:13:09]}
{[%emt 00:00:06]} 11. a4 {[%clk 00:13:27]} {[%emt 00:00:26]} Bd7 {[%clk
00:12:24]} {[%emt 00:00:50]} 12. axb5 {[%clk 00:13:30]} {[%emt 00:00:03]} Bxb5
{[%clk 00:12:27]} 13. b3 {[%clk 00:13:32]} {[%emt 00:00:02]} Ne8 {[%clk
00:11:05]} {[%emt 00:01:28]} 14. Nd2 {[%clk 00:13:23]} {[%emt 00:00:14]} Qh4
{[%clk 00:10:25]} {[%emt 00:00:46]} 15. Nf3 {[%clk 00:12:46]} {[%emt 00:00:40]}
Qh5 {[%clk 00:10:19]} {[%emt 00:00:12]} 16. Nc4 {[%clk 00:11:51]} {[%emt
00:01:00]} f5 {[%clk 00:08:14]} {[%emt 00:02:09]} 17. Nfd2 {[%clk 00:09:36]}
{[%emt 00:02:20]} Qh4 {[%clk 00:06:26]} {[%emt 00:01:53]} 18. Bb2 {[%clk
00:08:18]} {[%emt 00:01:23]} fxe4 {[%clk 00:05:34]} {[%emt 00:00:58]} 19. Nxe4
{[%clk 00:08:16]} {[%emt 00:00:07]} Bxc4 {[%clk 00:05:27]} {[%emt 00:00:13]} 20.
bxc4 {[%clk 00:08:20]} Nf6 {[%clk 00:05:11]} {[%emt 00:00:21]} 21. g3 {[%clk
00:08:02]} {[%emt 00:00:23]} Qh3 {[%clk 00:04:39]} {[%emt 00:00:37]} 22. Qe2
{[%clk 00:07:52]} {[%emt 00:00:15]} a5 {[%clk 00:03:09]} {[%emt 00:01:35]} 23.
Nxf6+ {[%clk 00:06:28]} {[%emt 00:01:29]} Rxf6 {[%clk 00:03:08]} {[%emt
00:00:06]} 24. f4 {[%clk 00:06:15]} {[%emt 00:00:17]} Re8 {[%clk 00:01:27]}
{[%emt 00:01:47]} 25. fxe5 {[%clk 00:05:50]} {[%emt 00:00:31]} Bxe5 {[%clk
00:01:14]} {[%emt 00:00:17]} 26. Rxf6 {[%clk 00:01:50]} {[%emt 00:04:05]} gxf6
{[%clk 00:01:18]} 27. Qe4 {[%clk 00:01:45]} {[%emt 00:00:10]} Re7 {[%clk
00:00:53]} {[%emt 00:00:31]} 28. Qd5+ {[%clk 00:01:12]} {[%emt 00:00:37]} Kg7
{[%clk 00:00:57]} {[%emt 00:00:01]} 29. Qe4 {[%clk 00:00:59]} {[%emt 00:00:19]}
Kf8 {[%clk 00:00:28]} {[%emt 00:00:33]} 30. Re1 {[%clk 00:00:33]} {[%emt
00:00:31]} Bd6 {[%clk 00:00:13]} {[%emt 00:00:21]} 31. Qa8+ {[%clk 00:00:37]}
Kf7 {[%clk 00:00:17]} 32. Rxe7+ {[%clk 00:00:27]} {[%emt 00:00:16]} Kxe7 {[%clk
00:00:21]} {[%emt 00:00:01]} 33. Qe4+ {[%clk 00:00:21]} {[%emt 00:00:09]} Kf7
{[%clk 00:00:23]} {[%emt 00:00:04]} 34. Kg1 {[%clk 00:00:24]} {[%emt 00:00:03]}
Kg7 {[%clk 00:00:08]} {[%emt 00:00:20]} 35. Qf3 {[%clk 00:00:08]} {[%emt
00:00:20]} a4 {[%clk 00:00:12]} {[%emt 00:00:03]} 36. Qxf6+ {[%clk 00:00:11]}
1-0